fUSD/lending_fUSD_20250205
["ID","MTS","AMOUNT","RATE_DAILY","PERIOD"]
[351689861,1738735846095,-999.0,0.00011296,2]
[351689862,1738735846107,-999.0,0.00011296,2]
[351689863,1738735846118,-999.0,0.00011296,2]
[351689864,1738735846127,-999.0,0.00011296,2]
[351689865,1738735846136,-999.0,0.00011296,2]
[351689866,1738735846146,-999.0,0.00011296,2]
[351689867,1738735846156,-1049.98491652,0.00011296,2]
[351689868,1738735846166,-500.0,0.00011296,2]
[351689869,1738735846175,-500.0,0.00011296,2]
[351689870,1738735846184,-500.0,0.00011296,2]
[351689871,1738735846195,-500.0,0.00011296,2]
[351689872,1738735846205,-500.0,0.00011296,2]
[351689873,1738735846215,-500.0,0.00011296,2]
[351689874,1738735846224,-500.0,0.00011296,2]
[351689875,1738735846235,-500.0,0.00011296,2]
[351689876,1738735846244,-630.97448025,0.00011296,2]
[351689877,1738735846254,-500.0,0.00011296,2]
[351689878,1738735846263,-500.0,0.00011296,2]
[351689879,1738735846273,-500.0,0.00011296,2]
[351689880,1738735846282,-500.0,0.00011296,2]
[351689881,1738735846291,-500.0,0.00011296,2]
[351689882,1738735846300,-500.0,0.00011296,2]
[351689883,1738735846309,-500.0,0.00011296,2]
[351689884,1738735846318,-500.0,0.00011296,2]
[351689885,1738735846327,-500.0,0.00011296,2]
[351689886,1738735846336,-500.0,0.00011296,2]
[351689887,1738735846345,-500.0,0.00011296,2]
[351689888,1738735846356,-500.0,0.00011296,2]
[351689889,1738735846365,-500.0,0.00011296,2]
[351689890,1738735846374,-500.0,0.00011296,2]
[351689891,1738735846383,-630.25,0.00011296,2]
[351689892,1738735846392,-500.0,0.00011296,2]
[351689893,1738735846401,-500.0,0.00011296,2]
[351689894,1738735846410,-500.0,0.00011296,2]
[351689895,1738735846419,-500.0,0.00011296,2]
[351689896,1738735846428,-500.0,0.00011296,2]
[351689897,1738735846437,-500.0,0.00011296,2]
[351689898,1738735846446,-500.0,0.00011296,2]
[351689899,1738735846455,-500.0,0.00011296,2]
[351689900,1738735846465,-500.0,0.00011296,2]
[351689901,1738735846475,-500.0,0.00011296,2]
[351689902,1738735846484,-492.92,0.00011296,2]
[351689903,1738735846494,-500.0,0.00011296,2]
[351689904,1738735846504,-500.0,0.00011296,2]
[351689905,1738735846514,-500.0,0.00011296,2]
[351689906,1738735846523,-62984.99120013,0.00011297,2]
[351689907,1738735846546,-60178.79938787,0.00011297,2]
[351689908,1738735846561,-299.99,0.00011297,2]
[351689909,1738735846571,-12595.01975951,0.00011299,2]
[351689910,1738735846580,-159.57512586,0.000113,2]
[351689911,1738735846590,-500.0,0.00011315,2]
[351689912,1738735846777,-27873.739433,0.00011327,2]
[351689913,1738735846788,-4114.51132933,0.0001138,2]
[351689914,1738735846798,-165734.69051338,0.000114,2]
[351689915,1738735846808,-71459.06914043,0.000114,2]
[351689916,1738735846817,-500.0,0.00011432,2]
[351689917,1738735846827,-489.26,0.00011432,2]
[351689918,1738735846836,-497.06,0.00011432,2]
[351689919,1738735846846,-500.0,0.00011432,2]
[351689920,1738735846856,-500.0,0.00011432,2]
[351689921,1738735846865,-540.66595531,0.00011432,2]
[351689922,1738735846876,-500.0,0.00011433,2]
[351689923,1738735846887,-326.83909987,0.00011433,2]
[351689924,1738735846897,-289.37,0.00011433,2]
[351689925,1738735846909,-947.21,0.00011433,2]
[351689926,1738735846918,-500.0,0.00011433,2]
[351689927,1738735846928,-152.98,0.00011433,2]
[351689928,1738735846938,-500.0,0.00011433,2]
[351689929,1738735846947,-500.0,0.00011433,2]
[351689930,1738735846957,-500.0,0.00011433,2]
[351689931,1738735846966,-500.0,0.00011433,2]
[351689932,1738735846975,-496.24,0.00011433,2]
[351689933,1738735846985,-165.68,0.00011433,2]
[351689934,1738735846994,-500.0,0.00011433,2]
[351689935,1738735847002,-500.0,0.00011433,2]
[351689936,1738735847012,-500.0,0.00011433,2]
[351689937,1738735847021,-286.91,0.00011433,2]
[351689938,1738735847030,-500.0,0.00011433,2]
[351689939,1738735847039,-500.0,0.00011433,2]
[351689940,1738735847048,-500.0,0.00011433,2]
[351689941,1738735847057,-500.0,0.00011433,2]
[351689942,1738735847066,-500.0,0.00011433,2]
[351689943,1738735847076,-500.0,0.00011433,2]
[351689944,1738735847085,-500.0,0.00011433,2]
[351689945,1738735847094,-619.12,0.00011433,2]
[351689946,1738735847104,-500.0,0.00011433,2]
[351689947,1738735847113,-500.0,0.00011433,2]
[351689948,1738735847122,-500.0,0.00011433,2]
[351689949,1738735847131,-500.0,0.00011433,2]
[351689950,1738735847141,-500.0,0.00011433,2]
[351689951,1738735847151,-500.0,0.00011433,2]
[351689952,1738735847160,-500.0,0.00011433,2]
[351689953,1738735847170,-174.03,0.00011458,2]
[351689954,1738735847180,-17805.0,0.00011463,7]
[351689955,1738735847189,-500.0,0.00011463,2]
[351689956,1738735847199,-500.0,0.00011463,2]
[351689957,1738735847208,-588.3,0.00011474,2]
[351689958,1738735847217,-1603.0,0.0001148,2]
[351689959,1738735847227,-333445.23302542,0.0001148,2]
[351689960,1738735847236,-172400.15714161,0.00011482,2]
[351689961,1738735847284,-406.97865273,0.00011482,2]
[351689962,1738735847295,-4280.87773808,0.00011482,2]
[351689963,1738735847323,-50997.63273824,0.00011482,2]
[351689973,1738735870749,500.0,8.851e-05,2]
[351689974,1738735871756,1225.35,8.69e-05,2]
[351689975,1738735872102,1225.35,0.00010953,2]
[351689976,1738735879737,294.38,0.00010586,2]
[351689977,1738735884314,1326.0574,8.699e-05,2]
[351689978,1738735902924,2500.0,8.851e-05,2]
[351689979,1738735911087,4700.16,0.00010555,2]
[351689980,1738735930643,5000.0,8.973e-05,2]
[351689981,1738735947874,155.834978,0.00010896,2]
[351689982,1738735948655,250.0,0.00010565,2]
[351689983,1738735952804,12624.72271605,8.973e-05,2]
[351689984,1738735952830,723.12028395,8.973e-05,2]
[351689985,1738735966118,3140.5323,8.836e-05,2]
[351689986,1738736039840,487.5861,8.851e-05,2]
[351689987,1738736050648,875.7298,8.973e-05,2]
[351689988,1738736207926,169.81,0.00010462,2]
[351689989,1738736236441,23900.0,0.0001048,2]
[351689990,1738736355466,1000.0,0.00010446,2]
[351689991,1738736428864,1741.98,0.00010452,2]
[351689994,1738736687242,1102.81,8.471e-05,2]
[351689995,1738736687572,1102.81,0.00010734,2]
[351689996,1738736695705,662.97,0.00010388,2]
[351689997,1738736719809,1398.40151605,9e-05,2]
[351689998,1738736719837,1025.99438475,9e-05,2]
[351689999,1738736740343,18236.78754085,8.8e-05,2]
[351690002,1738736765616,8923.65228012,8e-05,2]
[351690016,1738736952150,-150.0,8.799e-05,2]
[351690017,1738736952171,-300.0,8.799e-05,2]
[351690018,1738736952193,-2700.80266355,8.8e-05,2]
[351690019,1738736955161,-16189.2890214,8.8e-05,2]
[351690021,1738736963106,-14818.65248362,8.8e-05,2]
[351690022,1738736966099,-4756.822784,8.8e-05,2]
[351690023,1738736974122,-297.48196666,8.8e-05,2]
[351690036,1738737031847,-1832.1416959,8.8e-05,2]
[351690037,1738737031860,-1859.46357618,8.8e-05,2]
[351690038,1738737031873,-706.29087696,8.8e-05,2]
[351690039,1738737031885,-912.26201413,8.8e-05,2]
[351690040,1738737031954,-2044.17048353,8.8e-05,2]
[351690041,1738737031966,-300.0,8.8e-05,2]
[351690042,1738737032262,-7934.43106463,8.8e-05,2]
[351690043,1738737032274,-2010.06740946,8.8e-05,2]
[351690044,1738737032285,-898.408,8.8e-05,2]
[351690045,1738737032297,-1005.91138018,8.8e-05,2]
[351690047,1738737032311,-14817.45622249,8.8e-05,2]
[351690050,1738737032324,-31485.0,8.8e-05,2]
[351690052,1738737032336,-6343.27837413,8.8e-05,2]
[351690054,1738737032345,-172.10714687,9.679e-05,2]
[351690056,1738737032362,-494.54201831,9.679e-05,2]
[351690058,1738737032371,-155.89806424,0.0001,2]
[351690060,1738737032381,-250.0,0.00010359,2]
[351690062,1738737032391,-1437.12877272,0.00010398,2]
[351690064,1738737032400,-500.0,0.00010398,2]
[351690067,1738737032411,-1000.0,0.00010522,2]
[351690068,1738737032420,-174.03,0.00010642,2]
[351690071,1738737032431,-250.0,0.00010847,2]
[351690072,1738737032440,-197.22759904,0.00011204,2]
[351690075,1738737032449,-382.29,0.00011204,2]
[351690076,1738737032459,-371.66,0.00011204,2]
[351690078,1738737032469,-378.82,0.00011204,2]
[351690080,1738737032479,-370.49,0.00011204,2]
[351690083,1738737032490,-374.52,0.00011249,2]
[351690084,1738737032499,-150.99,0.00011249,2]
[351690086,1738737032508,-372.89,0.00011249,2]
[351690089,1738737032517,-373.57,0.00011249,2]
[351690091,1738737032527,-375.5,0.00011249,2]
[351690093,1738737032537,-379.15,0.00011249,2]
[351690095,1738737032547,-381.64,0.00011249,2]
[351690096,1738737032557,-376.35,0.0001125,2]
[351690098,1738737032567,-378.78,0.0001125,2]
[351690100,1738737032577,-377.01,0.0001125,2]
[351690102,1738737032587,-380.09,0.0001125,2]
[351690105,1738737032596,-377.02,0.0001125,2]
[351690106,1738737032606,-376.7,0.0001125,2]
[351690108,1738737032615,-372.46,0.0001125,2]
[351690110,1738737032625,-368.94,0.0001125,2]
[351690113,1738737032634,-382.02,0.0001125,2]
[351690115,1738737032644,-380.85,0.00011251,2]
[351690116,1738737032654,-375.69,0.00011251,2]
[351690118,1738737032663,-379.03,0.00011251,2]
[351690121,1738737032673,-381.29,0.00011251,2]
[351690122,1738737032682,-378.63,0.00011251,2]
[351690125,1738737032693,-367.99,0.00011251,2]
[351690127,1738737032702,-373.03,0.00011251,2]
[351690129,1738737032712,-378.0,0.00011251,2]
[351690131,1738737032721,-373.35,0.00011251,2]
[351690133,1738737032731,-378.59,0.00011251,2]
[351690135,1738737032741,-376.66,0.00011251,2]
[351690137,1738737032750,-381.96,0.00011251,2]
[351690139,1738737032759,-371.67,0.00011251,2]
[351690140,1738737032769,-377.91,0.00011251,2]
[351690143,1738737032779,-377.39,0.00011251,2]
[351690145,1738737032788,-375.81,0.00011251,2]
[351690147,1738737032798,-372.24,0.00011251,2]
[351690149,1738737032808,-369.69,0.00011251,2]
[351690151,1738737032818,-369.16,0.00011251,2]
[351690153,1738737032828,-370.45,0.00011251,2]
[351690155,1738737032837,-376.71,0.00011251,2]
[351690157,1738737032847,-380.9,0.00011251,2]
[351690159,1738737032857,-367.83,0.00011251,2]
[351690161,1738737032866,-373.39,0.00011251,2]
[351690163,1738737032876,-370.91,0.00011251,2]
[351690165,1738737032885,-380.29,0.00011251,2]
[351690167,1738737032895,-374.93,0.00011251,2]
[351690169,1738737032905,-380.32,0.00011251,2]
[351690171,1738737032918,-377.28,0.00011251,2]
[351690173,1738737032927,-377.48,0.00011251,2]
[351690175,1738737032937,-382.28,0.00011252,2]
[351690177,1738737032946,-381.34,0.00011252,2]
[351690179,1738737032955,-367.51,0.00011252,2]
[351690181,1738737032964,-379.28,0.00011252,2]
[351690183,1738737032974,-378.23,0.00011252,2]
[351690185,1738737032985,-377.06,0.00011252,2]
[351690187,1738737032995,-381.02,0.00011252,2]
[351690189,1738737033005,-381.79,0.00011252,2]
[351690191,1738737033014,-378.18,0.00011252,2]
[351690193,1738737033024,-368.47,0.00011252,2]
[351690195,1738737033033,-381.95,0.00011252,2]
[351690197,1738737033043,-1090.13246158,0.00011252,2]
[351690199,1738737033052,-1080.70894772,0.00011252,2]
[351690201,1738737033063,-200.0,0.00011259,2]
[351690203,1738737033074,-200.0,0.00011263,2]
[351690205,1738737033084,-4127.355,0.00011295,2]
[351690207,1738737033094,-197.237,0.00011295,2]
[351690209,1738737033104,-451.57506893,0.00011295,2]
[351690211,1738737033114,-10000.0,0.00011298,2]
[351690213,1738737033124,-568.0,0.00011304,2]
[351690215,1738737033133,-635.0,0.00011304,2]
[351690217,1738737033143,-150.0,0.00011304,2]
[351690219,1738737033152,-1826.0,0.00011304,2]
[351690221,1738737033162,-783.0,0.00011304,2]
[351690223,1738737033172,-2953.0,0.00011304,2]
[351690225,1738737033182,-907.0,0.00011304,2]
[351690227,1738737033191,-1263.439,0.00011304,2]
[351690229,1738737033201,-538.193,0.00011304,2]
[351690231,1738737033211,-1272.0,0.00011304,2]
[351690233,1738737033220,-647.344,0.00011304,2]
[351690235,1738737033230,-4000.0,0.0001137,2]
[351690237,1738737033240,-197.22759903,0.00011399,2]
[351690239,1738737033250,-500.0,0.00011473,2]
[351690240,1738737033259,-868.28,0.00011481,2]
[351690242,1738737033269,-504.24365164,0.00011481,2]
[351690244,1738737033279,-349.29243232,0.00011481,2]
[351690246,1738737033289,-508.33304653,0.00011481,2]
[351690248,1738737033299,-507.40665904,0.00011481,2]
[351690249,1738737033308,-504.45458,0.00011481,2]
[351690250,1738737033318,-500.0,0.00011481,2]
[351690251,1738737033327,-501.45899475,0.00011481,2]
[351690252,1738737033337,-500.0,0.00011481,2]
[351690253,1738737033346,-500.0,0.00011481,2]
[351690254,1738737033356,-500.0,0.00011481,2]
[351690255,1738737033366,-500.0,0.00011481,2]
[351690256,1738737033375,-500.0,0.00011481,2]
[351690257,1738737033385,-500.0,0.00011481,2]
[351690258,1738737033394,-500.0,0.00011481,2]
[351690259,1738737033403,-500.0,0.00011481,2]
[351690261,1738737033413,-500.0,0.00011481,2]
[351690263,1738737033423,-500.0,0.00011481,2]
[351690265,1738737033433,-500.0,0.00011481,2]
[351690268,1738737033444,-500.0,0.00011481,2]
[351690269,1738737033454,-520.07241299,0.00011481,2]
[351690272,1738737033464,-500.0,0.00011481,2]
[351690273,1738737033474,-500.0,0.00011481,2]
[351690275,1738737033483,-500.0,0.00011481,2]
[351690277,1738737033493,-500.0,0.00011481,2]
[351690279,1738737033502,-500.0,0.00011481,2]
[351690282,1738737033512,-500.0,0.00011481,2]
[351690284,1738737033522,-500.0,0.00011481,2]
[351690286,1738737033531,-500.0,0.00011481,2]
[351690287,1738737033540,-405.67,0.00011481,2]
[351690289,1738737033549,-500.0,0.00011481,2]
[351690291,1738737033559,-463.83,0.00011481,2]
[351690293,1738737033569,-231.62247172,0.00011481,2]
[351690295,1738737033579,-2092.926508,0.00011481,2]
[351690297,1738737033588,-500.0,0.00011481,2]
[351690299,1738737033597,-626.85,0.00011481,2]
[351690301,1738737033606,-632.62,0.00011481,2]
[351690303,1738737033615,-156.121252,0.00011481,2]
[351690305,1738737033624,-292.08,0.00011481,2]
[351690307,1738737033633,-500.0,0.00011481,2]
[351690309,1738737033642,-500.0,0.00011481,2]
[351690311,1738737033651,-18858.71596091,0.00011482,2]
[351690314,1738737033664,-745.2977152,0.00011482,2]
[351690316,1738737033675,-5707.14537576,0.00011482,2]
[351690327,1738737037833,-2020.0,0.00011304,2]
[351690328,1738737037844,-500.0,0.00011481,2]
[351690329,1738737037854,-218.46758266,0.00011481,2]
[351690330,1738737037866,-281.53241734,0.00011481,2]
[351690331,1738737037876,-2978.03632378,0.00011482,2]
[351690332,1738737037888,-393.01182328,0.00011482,2]
[351690333,1738737037900,-2700.25113428,0.00011482,2]
[351690334,1738737037928,-1589.07529685,0.00011482,2]
[351690335,1738737037939,-499.69610402,0.00011482,2]
[351690336,1738737037951,-7069.34503935,0.00011482,2]
[351690337,1738737037963,-14606.5190269,0.00011482,2]
[351690411,1738737039803,-20242.68506718,0.00011482,2]
[351690412,1738737039816,-151.0,0.00011496,2]
[351690413,1738737039825,-295.6,0.00011496,2]
[351690414,1738737039835,-266.52,0.00011496,2]
[351690415,1738737039845,-251.33813355,0.00011496,2]
[351690416,1738737039854,-500.0,0.00011496,2]
[351690417,1738737039863,-628.23,0.00011496,2]
[351690418,1738737039873,-500.0,0.00011496,2]
[351690419,1738737039882,-500.0,0.00011496,2]
[351690420,1738737039892,-517.65619959,0.00011496,2]
[351690421,1738737039902,-500.0,0.00011496,2]
[351690422,1738737039915,-500.0,0.00011496,2]
[351690423,1738737039925,-589.76,0.00011496,2]
[351690424,1738737039935,-506.9255903,0.00011496,2]
[351690425,1738737039944,-500.0,0.00011496,2]
[351690426,1738737039955,-500.0,0.00011496,2]
[351690427,1738737039964,-500.0,0.00011496,2]
[351690428,1738737039974,-615.83,0.00011496,2]
[351690429,1738737039983,-493.0,0.00011496,2]
[351690430,1738737039994,-460.8007062,0.00011496,2]
[351690431,1738737040002,-500.0,0.00011496,2]
[351690432,1738737040010,-500.0,0.00011496,2]
[351690433,1738737040019,-500.0,0.00011496,2]
[351690434,1738737040028,-505.2378199,0.00011496,2]
[351690435,1738737040037,-500.0,0.00011496,2]
[351690436,1738737040046,-500.0,0.00011496,2]
[351690437,1738737040056,-638.47,0.00011496,2]
[351690438,1738737040068,-500.0,0.00011496,2]
[351690439,1738737040078,-500.0,0.00011496,2]
[351690441,1738737040087,-2204.559056,0.00011496,2]
[351690442,1738737040096,-500.0,0.00011496,2]
[351690443,1738737040106,-500.0,0.00011496,2]
[351690444,1738737040115,-500.0,0.00011496,2]
[351690445,1738737040386,-500.0,0.00011496,2]
[351690446,1738737040396,-503.23519859,0.00011496,2]
[351690447,1738737040406,-450.0,0.00011496,2]
[351690448,1738737040415,-500.0,0.00011496,2]
[351690449,1738737040425,-500.0,0.00011496,2]
[351690450,1738737040434,-501.54296628,0.00011496,2]
[351690451,1738737040443,-500.0,0.00011496,2]
[351690452,1738737040453,-500.0,0.00011496,2]
[351690453,1738737040462,-500.0,0.00011496,2]
[351690454,1738737040471,-500.0,0.00011496,2]
[351690455,1738737040481,-500.0,0.00011496,2]
[351690456,1738737040490,-500.0,0.00011496,2]
[351690457,1738737040499,-500.0,0.00011496,2]
[351690458,1738737040508,-500.0,0.00011496,2]
[351690459,1738737040518,-500.0,0.00011496,2]
[351690460,1738737040527,-500.0,0.00011496,2]
[351690461,1738737040536,-500.0,0.00011496,2]
[351690462,1738737040546,-500.0,0.00011496,2]
[351690463,1738737040555,-500.0,0.00011496,2]
[351690464,1738737040566,-500.0,0.00011496,2]
[351690465,1738737040574,-500.0,0.00011496,2]
[351690466,1738737040583,-500.0,0.00011496,2]
[351690467,1738737040594,-536.16,0.00011496,2]
[351690468,1738737040603,-500.0,0.00011496,2]
[351690469,1738737040612,-500.0,0.00011496,2]
[351690470,1738737040621,-500.0,0.00011496,2]
[351690471,1738737040631,-500.0,0.00011496,2]
[351690472,1738737040639,-500.0,0.00011496,2]
[351690473,1738737040650,-500.0,0.00011496,2]
[351690474,1738737040659,-500.0,0.00011496,2]
[351690475,1738737040668,-500.0,0.00011496,2]
[351690476,1738737040678,-599.48573489,0.00011496,2]
[351690477,1738737040688,-500.0,0.00011496,2]
[351690478,1738737040697,-500.0,0.00011496,2]
[351690479,1738737040706,-500.0,0.00011496,2]
[351690480,1738737040715,-274.58042911,0.00011496,2]
[351690481,1738737040724,-500.0,0.00011496,2]
[351690482,1738737040733,-500.0,0.00011496,2]
[351690483,1738737040742,-500.0,0.00011496,2]
[351690484,1738737040752,-191454.02428879,0.00011497,2]
[351690485,1738737040767,-800.66390611,0.00011497,2]
[351690486,1738737040787,-28019.2140588,0.00011497,2]
[351690487,1738737040798,-2318.83411367,0.00011497,2]
[351690488,1738737040810,-288.63469799,0.00011497,2]
[351690489,1738737040825,-401.44214624,0.00011497,2]
[351690490,1738737040837,-511.71444978,0.00011497,2]
[351690491,1738737040849,-331.07,0.00011497,2]
[351690502,1738737042813,-368.33,0.00011481,2]
[351690503,1738737042823,-6029.0287318,0.00011497,2]
[351690504,1738737042834,-362.0517599,0.00011497,2]
[351690505,1738737042847,-1776.20347505,0.00011497,2]
[351690506,1738737042860,-29537.12967583,0.00011497,2]
[351690507,1738737042871,-576.6553632,0.00011497,2]
[351690508,1738737042883,-9518.59284828,0.00011497,2]
[351690509,1738737042894,-4836.0,0.00011497,2]
[351690510,1738737042956,-93910.00000008,0.00011497,2]
[351690512,1738737042968,-682.36978236,0.00011497,2]
[351690515,1738737043053,-48986.13095375,0.00011497,2]
[351690516,1738737043063,-151.0,0.00011497,2]
[351690517,1738737043075,-638077.77757285,0.00011498,2]
[351690518,1738737043087,-835.78496917,0.00011498,2]
[351690524,1738737045877,-679.456,0.00011302,2]
[351690525,1738737045887,-1080.16155818,0.00011498,2]
[351690526,1738737045901,-2338.60446621,0.00011498,2]
[351690527,1738737045916,-598.51284646,0.00011498,2]
[351690528,1738737045930,-270.32830976,0.00011498,2]
[351690529,1738737046016,-9401.0,0.00011498,2]
[351690530,1738737046028,-343.21999969,0.00011498,2]
[351690531,1738737046041,-466.04135933,0.00011498,2]
[351690532,1738737046108,-1262.12780761,0.00011498,2]
[351690567,1738737209828,-810.0,8.119e-05,2]
[351690568,1738737213307,-0.5493,8.119e-05,2]
[351690569,1738737213329,-600.0,8.22e-05,2]
[351690570,1738737213350,-300.0,8.835e-05,2]
[351690578,1738737363380,300.0,8.835e-05,2]
[351690579,1738737421252,300.0,8.835e-05,2]
[351690580,1738737481416,300.0,8.835e-05,2]
[351690583,1738737541881,300.0,8.835e-05,2]
[351690584,1738737559072,992.52,8.401e-05,2]
[351690585,1738737661241,300.0,8.835e-05,2]
[351690586,1738737781322,300.0,8.835e-05,2]
[351690587,1738737841234,300.0,8.835e-05,2]
[351690588,1738737901908,300.0,8.835e-05,2]
[351690589,1738737930146,-160.99638703,8.836e-05,2]
[351690592,1738738019390,-293.24474508,8.836e-05,2]
[351690593,1738738031093,-272.35120509,8.836e-05,2]
[351690595,1738738152220,-333.53201853,8.836e-05,2]
[351690616,1738738232105,-1192.53928917,8.836e-05,2]
[351690619,1738738232146,-3128.1815892,8.836e-05,2]
[351690620,1738738232385,-5336.7536659,8.836e-05,2]
[351690621,1738738232409,-600.0,9.59e-05,2]
[351690622,1738738232418,-846.21496033,9.781e-05,7]
[351690623,1738738232427,-1000.0,9.898e-05,2]
[351690624,1738738232437,-1515.62,9.898e-05,2]
[351690625,1738738232446,-493.83,9.9e-05,2]
[351690626,1738738232456,-169.81,9.966e-05,2]
[351690627,1738738232465,-289.26800044,9.983e-05,2]
[351690628,1738738232479,-1305.0,9.983e-05,2]
[351690629,1738738232490,-500.0,9.983e-05,2]
[351690630,1738738232501,-579.36353194,9.983e-05,2]
[351690635,1738738232849,-397.92779334,9.983e-05,2]
[351690636,1738738232860,-2300.99338729,9.983e-05,2]
[351690641,1738738237906,-4082.9822,9.879e-05,2]
[351690646,1738738240018,-1256.6,9.879e-05,2]
[351690647,1738738240299,-341.01150445,9.879e-05,2]
[351690656,1738738243154,-18219.40629555,9.879e-05,2]
[351690657,1738738243164,-435.98728699,9.983e-05,2]
[351690658,1738738243173,-277.55119426,0.00010015,2]
[351690659,1738738243184,-222.44880574,0.00010015,2]
[351690660,1738738243193,-164.16,0.00010077,2]
[351690661,1738738243202,-743.62,0.00010137,2]
[351690662,1738738243211,-315.14820239,0.00010182,2]
[351690663,1738738243224,-1009.2901665,0.00010182,2]
[351690664,1738738243247,-209.09163111,0.00010182,2]
[351690666,1738738243256,-500.0,0.00010192,2]
[351690667,1738738243265,-300.0,0.00010237,2]
[351690668,1738738243275,-250.0,0.00010281,2]
[351690669,1738738243285,-387.35,0.00010288,2]
[351690670,1738738243294,-2343.14,0.0001038,2]
[351690671,1738738243304,-1526.21,0.00010417,2]
[351690672,1738738243313,-534.369211,0.00010441,2]
[351690673,1738738243325,-163.22,0.00010493,2]
[351690674,1738738243334,-1396.22,0.0001051,2]
[351690675,1738738243343,-150.0,0.0001054,2]
[351690676,1738738243351,-772.39,0.00010541,2]
[351690677,1738738243361,-878.24,0.00010541,2]
[351690678,1738738243370,-777.2,0.00010548,2]
[351690679,1738738243379,-169.33,0.00010623,2]
[351690680,1738738243388,-992.52,0.00010665,2]
[351690681,1738738243397,-876.92,0.00010678,2]
[351690682,1738738243407,-151.59,0.00010678,2]
[351690683,1738738243416,-300.0,0.00010685,2]
[351690684,1738738243425,-14011.0,0.00010778,2]
[351690685,1738738243434,-500.0,0.00010822,2]
[351690686,1738738243444,-600.0,0.0001096,2]
[351690687,1738738243453,-659.18973019,0.00011135,2]
[351690690,1738738243483,-32.58274943,0.00011135,2]
[351690693,1738738243537,-308.22752038,0.00011135,2]
[351690694,1738738243546,-84.41248862,0.00011222,2]
[351690695,1738738243557,-3731.49951138,0.00011222,2]
[351690696,1738738243567,-185.291,0.00011222,2]
[351690697,1738738243576,-3148.75493987,0.00011224,2]
[351690698,1738738243585,-500.0,0.00011233,2]
[351690699,1738738243595,-1520.53334025,0.00011236,2]
[351690700,1738738243607,-1628.22159962,0.00011236,2]
[351690701,1738738243617,-371.76,0.00011268,2]
[351690702,1738738243628,-380.26,0.00011268,2]
[351690703,1738738243638,-373.88,0.00011268,2]
[351690704,1738738243647,-382.35,0.00011268,2]
[351690705,1738738243656,-1120.06333156,0.00011268,2]
[351690706,1738738243666,-1135.9346476,0.00011268,2]
[351690707,1738738243675,-3148.75493987,0.00011273,2]
[351690708,1738738243685,-150.99,0.00011281,2]
[351690709,1738738243694,-3148.75493987,0.00011285,2]
[351690710,1738738243704,-4000.0,0.0001138,2]
[351690711,1738738243714,-16667.74240978,0.00011398,2]
[351690712,1738738243724,-4114.51132933,0.00011398,2]
[351690713,1738738243733,-534.369211,0.000114,2]
[351690714,1738738243743,-202.0,0.00011423,2]
[351690715,1738738243752,-500.0,0.00011473,2]
[351690716,1738738243762,-500.0,0.00011473,2]
[351690717,1738738243771,-500.0,0.00011473,2]
[351690718,1738738243781,-504.17715478,0.00011481,2]
[351690719,1738738243791,-504.36318195,0.00011481,2]
[351690720,1738738243800,-500.0,0.00011481,2]
[351690721,1738738243809,-500.0,0.00011481,2]
[351690722,1738738243820,-501.52897597,0.00011481,2]
[351690723,1738738243829,-500.0,0.00011481,2]
[351690724,1738738243838,-562.1,0.00011481,2]
[351690725,1738738243848,-500.0,0.00011481,2]